fUSD/lending_fUSD_20260315
["ID","MTS","AMOUNT","RATE_DAILY","PERIOD"]
[408403678,1773570633386,-500.0,0.00012374,2]
[408403679,1773570633396,-1128.83,0.00012374,2]
[408403680,1773570633406,-3769.70063839,0.00012379,2]
[408403681,1773570633416,-196.0,0.00012415,2]
[408403682,1773570633426,-225.0,0.00012435,2]
[408403683,1773570633436,-1420.0,0.00012441,2]
[408403684,1773570633445,-2263.84,0.00012456,2]
[408403685,1773570633455,-438.0,0.0001246,2]
[408403686,1773570633466,-642.0,0.00012466,2]
[408403687,1773570633476,-991.40620761,0.00012485,2]
[408403688,1773570633486,-2476.56284493,0.00012485,2]
[408403689,1773570633495,-603.13000435,0.00012488,2]
[408403690,1773570633505,-594.37067496,0.0001249,2]
[408403691,1773570633515,-1137.0,0.00012493,2]
[408403692,1773570633524,-1405.0,0.00012518,2]
[408403693,1773570633535,-944.0,0.00012539,2]
[408403694,1773570633544,-888.0,0.00012543,2]
[408403695,1773570633554,-681.0,0.00012564,2]
[408403696,1773570633564,-180.0,0.00012565,2]
[408403697,1773570633573,-1375.0,0.00012568,2]
[408403698,1773570633583,-1834.0,0.00012593,2]
[408403699,1773570633593,-1137.67248216,0.00012611,2]
[408403700,1773570633602,-6030.82131841,0.00012611,2]
[408403701,1773570633611,-4332.19279865,0.00012611,2]
[408403702,1773570633621,-5929.4529569,0.00012611,2]
[408403703,1773570633631,-1813.0,0.00012618,2]
[408403704,1773570633640,-500.0,0.00012648,2]
[408403705,1773570633650,-200.0,0.00012648,2]
[408403706,1773570633659,-1128.83,0.00012648,2]
[408403707,1773570633669,-277.18655867,0.00012693,2]
[408403708,1773570633679,-44425.41086274,0.00012703,2]
[408403709,1773570633691,-405.23147994,0.00012703,2]
[408403710,1773570638085,-253367.99765732,0.00012703,2]
[408403711,1773570638095,-1000.0,0.00012721,2]
[408403712,1773570638104,-1000.0,0.00012721,2]
[408403713,1773570638114,-500.0,0.00012721,2]
[408403714,1773570638123,-1000.0,0.00012721,2]
[408403715,1773570638132,-1000.0,0.00012721,2]
[408403716,1773570638142,-1000.0,0.00012721,2]
[408403717,1773570638151,-429.3358411,0.00012721,2]
[408403718,1773570638161,-1000.0,0.00012721,2]
[408403719,1773570638172,-1000.0,0.00012721,2]
[408403720,1773570638183,-1000.0,0.00012721,2]
[408403721,1773570638192,-312.49833716,0.00012721,2]
[408403722,1773570638201,-1000.0,0.00012721,2]
[408403723,1773570638211,-500.0,0.00012729,2]
[408403724,1773570638219,-4000.0,0.00012767,2]
[408403725,1773570638229,-500.0,0.00012773,2]
[408403726,1773570638239,-500.0,0.00012773,2]
[408403727,1773570638248,-500.0,0.00012784,2]
[408403728,1773570638257,-1852.42,0.00012793,2]
[408403729,1773570638266,-500.0,0.00012793,2]
[408403730,1773570638279,-159.42,0.00012793,2]
[408403731,1773570638289,-2263.84,0.00012793,2]
[408403732,1773570638299,-500.0,0.00012839,2]
[408403733,1773570638309,-13387.49862735,0.00012886,2]
[408403734,1773570638319,-264.53834822,0.00012893,2]
[408403735,1773570638331,-1100.0,0.000129,4]
[408403736,1773570638343,-500.0,0.00012922,2]
[408403737,1773570638352,-1128.83,0.00012922,2]
[408403738,1773570638361,-255.0,0.00013078,2]
[408403739,1773570638370,-4000.0,0.00013086,2]
[408403740,1773570638380,-420.0,0.00013171,2]
[408403741,1773570638389,-420.0,0.00013171,2]
[408403742,1773570638398,-193.0,0.00013186,2]
[408403743,1773570638408,-5000.0,0.00013186,2]
[408403745,1773570638417,-500.0,0.00013196,2]
[408403746,1773570638426,-200.0,0.00013196,2]
[408403747,1773570638435,-1128.83,0.00013196,2]
[408403748,1773570638444,-1680.0,0.00013197,2]
[408403749,1773570638454,-5000.0,0.00013198,2]
[408403750,1773570638463,-250.0,0.00013199,2]
[408403751,1773570638472,-1042.59420041,0.000132,2]
[408403752,1773570638482,-1509.80182332,0.00013268,2]
[408403753,1773570638490,-1500.0,0.00013268,2]
[408403754,1773570638500,-1620.49885968,0.00013268,2]
[408403755,1773570638509,-1000.0,0.00013268,2]
[408403756,1773570638519,-1500.0,0.00013268,2]
[408403757,1773570638529,-503.60180879,0.00013268,2]
[408403758,1773570638540,-1500.0,0.00013268,2]
[408403759,1773570638550,-250.0,0.0001331,2]
[408403760,1773570638560,-1000.0,0.00013321,2]
[408403761,1773570638569,-1000.0,0.00013321,2]
[408403762,1773570638578,-4000.0,0.00013405,2]
[408403763,1773570638587,-3240.0,0.00013425,2]
[408403764,1773570638595,-500.0,0.0001347,2]
[408403765,1773570638604,-1128.83,0.0001347,2]
[408403766,1773570638614,-159.42,0.00013503,2]
[408403767,1773570638623,-14441.847924,0.0001365,2]
[408403768,1773570638632,-158.0,0.00013651,3]
[408403769,1773570638641,-500.0,0.00013698,2]
[408403770,1773570638650,-500.0,0.00013698,2]
[408403771,1773570638658,-500.0,0.00013698,2]
[408403772,1773570638668,-619.25152153,0.00013698,2]
[408403773,1773570638677,-500.0,0.00013698,2]
[408403774,1773570638687,-500.0,0.00013698,2]
[408403775,1773570638696,-500.0,0.00013698,2]
[408403776,1773570638705,-500.0,0.00013698,2]
[408403777,1773570638714,-500.0,0.00013698,2]
[408403778,1773570638723,-500.0,0.00013698,2]
[408403779,1773570638732,-500.0,0.00013698,2]
[408403780,1773570638890,-500.0,0.00013698,2]
[408403781,1773570638901,-500.0,0.00013698,2]
[408403782,1773570638910,-500.0,0.00013698,2]
[408403783,1773570638920,-500.0,0.00013698,2]
[408403784,1773570638929,-500.0,0.00013698,2]
[408403785,1773570638938,-500.0,0.00013698,2]
[408403786,1773570638948,-500.0,0.00013698,2]
[408403787,1773570638957,-500.0,0.00013698,2]
[408403788,1773570638967,-500.0,0.00013698,2]
[408403789,1773570638976,-500.0,0.00013698,2]
[408403790,1773570638985,-500.0,0.00013698,2]
[408403791,1773570638995,-517.30693522,0.00013698,2]
[408403792,1773570639004,-500.0,0.00013698,2]
[408403793,1773570639013,-500.0,0.00013698,2]
[408403794,1773570639023,-500.0,0.00013698,2]
[408403795,1773570639032,-500.0,0.00013698,2]
[408403796,1773570639042,-500.0,0.00013698,2]
[408403797,1773570639052,-500.0,0.00013698,2]
[408403798,1773570639062,-500.0,0.00013698,2]
[408403799,1773570639071,-500.0,0.00013698,2]
[408403800,1773570639080,-500.0,0.00013698,2]
[408403801,1773570639090,-500.0,0.00013698,2]
[408403802,1773570639099,-500.0,0.00013698,2]
[408403803,1773570639109,-500.0,0.00013698,2]
[408403804,1773570639118,-500.0,0.00013698,2]
[408403805,1773570639128,-535.51183506,0.00013698,2]
[408403806,1773570639137,-500.0,0.00013698,2]
[408403807,1773570639147,-500.0,0.00013698,2]
[408403808,1773570639156,-500.0,0.00013698,2]
[408403809,1773570639166,-500.0,0.00013698,2]
[408403810,1773570639180,-500.0,0.00013698,2]
[408403811,1773570639190,-564.65798041,0.00013698,2]
[408403812,1773570639199,-500.0,0.00013698,2]
[408403813,1773570639208,-500.0,0.00013698,2]
[408403814,1773570639218,-500.0,0.00013698,2]
[408403815,1773570639227,-376.74816547,0.00013698,2]
[408403816,1773570639236,-500.0,0.00013698,2]
[408403817,1773570639245,-500.0,0.00013698,2]
[408403818,1773570639257,-500.0,0.00013698,2]
[408403819,1773570639266,-500.0,0.00013698,2]
[408403820,1773570639275,-500.0,0.00013698,2]
[408403821,1773570639284,-500.0,0.00013698,2]
[408403822,1773570639294,-500.0,0.00013698,2]
[408403823,1773570639303,-500.0,0.00013698,2]
[408403824,1773570639312,-500.0,0.00013698,2]
[408403825,1773570639322,-500.0,0.00013698,2]
[408403826,1773570639331,-500.0,0.00013698,2]
[408403827,1773570639340,-500.0,0.00013698,2]
[408403828,1773570639350,-500.0,0.00013698,2]
[408403829,1773570639359,-500.0,0.00013698,2]
[408403830,1773570639368,-500.0,0.00013698,2]
[408403831,1773570639377,-500.0,0.00013698,2]
[408403832,1773570639386,-500.0,0.00013698,2]
[408403833,1773570639395,-500.0,0.00013698,2]
[408403834,1773570639404,-500.0,0.00013698,2]
[408403835,1773570639413,-515.50222331,0.00013698,2]
[408403836,1773570639423,-500.0,0.00013698,2]
[408403837,1773570639432,-500.0,0.00013698,2]
[408403838,1773570639440,-500.0,0.00013698,2]
[408403839,1773570639450,-215.30448155,0.00013698,2]
[408403840,1773570639459,-500.0,0.00013698,2]
[408403841,1773570639468,-500.0,0.00013698,2]
[408403842,1773570639477,-500.0,0.00013698,2]
[408403843,1773570639487,-500.0,0.00013698,2]
[408403844,1773570639496,-500.0,0.00013698,2]
[408403845,1773570639505,-500.0,0.00013698,2]
[408403846,1773570639514,-500.0,0.00013698,2]
[408403847,1773570639523,-500.0,0.00013698,2]
[408403848,1773570639532,-500.0,0.00013698,2]
[408403849,1773570639541,-500.0,0.00013698,2]
[408403850,1773570639550,-500.0,0.00013698,2]
[408403851,1773570639559,-198.38986947,0.00013698,2]
[408403852,1773570639568,-500.0,0.00013698,2]
[408403853,1773570639577,-500.0,0.00013698,2]
[408403854,1773570639587,-500.0,0.00013698,2]
[408403855,1773570639596,-287.82528865,0.00013698,2]
[408403856,1773570639605,-500.0,0.00013698,2]
[408403857,1773570639614,-500.0,0.00013698,2]
[408403858,1773570639623,-500.0,0.00013698,2]
[408403859,1773570639632,-514.54953026,0.00013698,2]
[408403860,1773570639641,-500.0,0.00013698,2]
[408403861,1773570639650,-297.89846423,0.00013698,2]
[408403862,1773570639659,-500.0,0.00013698,2]
[408403863,1773570639669,-500.0,0.00013698,2]
[408403864,1773570639678,-500.0,0.00013698,2]
[408403865,1773570639687,-507.79083862,0.00013698,2]
[408403866,1773570639696,-500.0,0.00013698,2]
[408403867,1773570639705,-500.0,0.00013698,2]
[408403868,1773570639714,-500.0,0.00013698,2]
[408403869,1773570639723,-500.0,0.00013698,2]
[408403870,1773570639732,-500.0,0.00013698,2]
[408403871,1773570639741,-516.15125572,0.00013698,2]
[408403872,1773570639750,-500.0,0.00013698,2]
[408403873,1773570639760,-500.0,0.00013698,2]
[408403874,1773570639771,-511.1229767,0.00013698,2]
[408403875,1773570639780,-500.0,0.00013698,2]
[408403876,1773570639789,-261.45915393,0.00013698,2]
[408403877,1773570639799,-500.0,0.00013698,2]
[408403878,1773570639808,-500.0,0.00013698,2]
[408403879,1773570639817,-500.0,0.00013698,2]
[408403880,1773570639827,-500.0,0.00013698,2]
[408403881,1773570639836,-500.0,0.00013698,2]
[408403882,1773570639845,-344.38732809,0.00013698,2]
[408403883,1773570639854,-500.0,0.00013698,2]
[408403884,1773570639863,-500.0,0.00013698,2]
[408403885,1773570639873,-500.0,0.00013698,2]
[408403886,1773570639882,-500.0,0.00013698,2]
[408403887,1773570639891,-579.837854,0.00013698,2]
[408403888,1773570639900,-500.0,0.00013698,2]
[408403889,1773570639909,-500.0,0.00013698,2]
[408403890,1773570639918,-500.0,0.00013698,2]
[408403891,1773570639928,-500.0,0.00013698,2]
[408403892,1773570639940,-500.0,0.00013698,2]
[408403893,1773570639949,-500.0,0.00013698,2]
[408403894,1773570639958,-500.0,0.00013698,2]
[408403895,1773570639968,-500.0,0.00013698,2]
[408403896,1773570639977,-500.0,0.00013698,2]
[408403897,1773570639986,-500.0,0.00013698,2]
[408403898,1773570639995,-500.0,0.00013698,2]
[408403899,1773570640006,-500.0,0.00013698,2]
[408403900,1773570640015,-500.0,0.00013698,2]
[408403901,1773570640024,-500.0,0.00013698,2]
[408403902,1773570640034,-500.0,0.00013698,2]
[408403903,1773570640044,-500.0,0.00013698,2]
[408403904,1773570640053,-500.0,0.00013698,2]
[408403905,1773570640064,-500.0,0.00013698,2]
[408403906,1773570640073,-500.0,0.00013698,2]
[408403907,1773570640082,-500.0,0.00013698,2]
[408403908,1773570640092,-500.0,0.00013698,2]
[408403909,1773570640101,-500.0,0.00013698,2]
[408403910,1773570640111,-500.0,0.00013698,2]
[408403911,1773570640120,-500.0,0.00013698,2]
[408403912,1773570640131,-559.04874654,0.00013698,2]
[408403913,1773570640140,-500.0,0.00013698,2]
[408403914,1773570640150,-500.0,0.00013698,2]
[408403915,1773570640159,-500.0,0.00013698,2]
[408403916,1773570640169,-500.0,0.00013698,2]
[408403917,1773570640183,-500.0,0.00013698,2]
[408403918,1773570640192,-500.0,0.00013698,2]
[408403919,1773570640202,-500.0,0.00013698,2]
[408403920,1773570640212,-500.0,0.00013698,2]
[408403921,1773570640221,-500.0,0.00013698,2]
[408403922,1773570640231,-500.0,0.00013698,2]
[408403923,1773570640241,-500.0,0.00013698,2]
[408403924,1773570640251,-500.0,0.00013698,2]
[408403925,1773570640260,-501.04802753,0.00013699,2]
[408403926,1773570640270,-500.0,0.00013699,2]
[408403927,1773570640279,-501.41774504,0.00013699,2]
[408403928,1773570640289,-502.74232996,0.00013699,2]
[408403929,1773570640298,-500.0,0.00013699,2]
[408403930,1773570640308,-500.77956524,0.00013699,2]
[408403931,1773570640318,-500.0,0.00013699,2]
[408403932,1773570640328,-500.0,0.00013699,2]
[408403933,1773570640338,-500.42322744,0.00013699,2]
[408403934,1773570640348,-500.0,0.00013699,2]
[408403935,1773570640357,-500.0,0.00013699,2]
[408403936,1773570640367,-331.2186495,0.00013699,2]
[408403937,1773570640376,-502.23235741,0.00013699,2]
[408403938,1773570640385,-502.20696467,0.00013699,2]
[408403939,1773570640395,-500.0,0.00013699,2]
[408403940,1773570640404,-500.0,0.00013699,2]
[408403941,1773570640413,-338.89055938,0.00013699,2]
[408403942,1773570640422,-500.0,0.00013699,2]
[408403943,1773570640431,-500.0,0.00013699,2]
[408403944,1773570640440,-501.32247837,0.00013699,2]
[408403945,1773570640450,-500.0,0.00013699,2]
[408403946,1773570640459,-500.0,0.00013699,2]
[408403947,1773570640469,-500.0,0.00013699,2]
[408403948,1773570640478,-500.0,0.00013699,2]
[408403949,1773570640487,-500.0,0.00013699,2]
[408403950,1773570640496,-173.72,0.00013707,2]
[408403951,1773570640506,-4000.0,0.00013725,2]
[408403952,1773570640515,-505.3214733,0.00013744,2]
[408403953,1773570640524,-200.0,0.00013744,2]
[408403954,1773570640534,-1128.83,0.00013744,2]
[408403955,1773570640544,-13387.49862735,0.00013763,2]
[408403956,1773570640553,-2000.0,0.00013816,2]
[408403957,1773570640562,-500.0,0.00013816,2]
[408403958,1773570640572,-500.0,0.00013816,2]
[408403959,1773570640581,-874.70888613,0.00013868,2]
[408403960,1773570640590,-1000.0,0.00013868,2]
[408403961,1773570640600,-1416.6,0.00013938,2]
[408403962,1773570640609,-3222.4118401,0.00013993,2]
[408403963,1773570640619,-1128.83947539,0.00014018,2]
[408403964,1773570640628,-4000.0,0.00014044,2]
[408403965,1773570640637,-159.42,0.00014214,2]
[408403966,1773570640647,-500.0,0.00014217,2]
[408403967,1773570640657,-500.0,0.00014217,2]
[408403968,1773570640666,-500.0,0.00014217,2]
[408403969,1773570640675,-501.09060044,0.00014217,2]
[408403970,1773570640684,-534.35511804,0.00014217,2]
[408403971,1773570640693,-510.35322,0.00014233,7]
[408403972,1773570640703,-500.0,0.00014247,2]
[408403973,1773570640712,-1000.0,0.00014247,2]
[408403974,1773570640721,-501.20782157,0.00014247,2]
[408403975,1773570640731,-502.80613265,0.00014247,2]
[408403976,1773570640740,-1096.97307244,0.00014247,2]
[408403977,1773570640749,-1000.0,0.00014247,2]
[408403978,1773570640759,-503.2846823,0.00014247,2]
[408403979,1773570640768,-1000.0,0.00014247,2]
[408403980,1773570640777,-1000.0,0.00014247,2]
[408403981,1773570640786,-932.25273422,0.00014247,2]
[408403982,1773570640802,-67.74726578,0.00014247,2]
[408403983,1773570640811,-1000.0,0.00014247,2]
[408403984,1773570640820,-1000.0,0.00014247,2]
[408403985,1773570640829,-1000.0,0.00014247,2]
[408403986,1773570640839,-1004.87765582,0.00014247,2]
[408403987,1773570640847,-1000.0,0.00014247,2]
[408403988,1773570640856,-433.0,0.00014253,2]
[408403989,1773570640865,-200.0,0.00014292,2]
[408403990,1773570640875,-2500.0,0.00014364,2]
[408403991,1773570640884,-587.0,0.00014459,2]
[408403992,1773570640893,-4187.0850784,0.000145,2]
[408403993,1773570640912,-1343.44849106,0.000145,2]
[408403994,1773570640923,-4469.46643054,0.000145,2]
[408403995,1773570640933,-2351.0,0.00014517,2]
[408403996,1773570640942,-500.0,0.00014639,2]
[408403997,1773570640951,-13387.49862735,0.00014639,2]
[408403998,1773570640960,-501.00594365,0.00014765,2]
[408403999,1773570640969,-1000.0,0.00014765,2]
[408404000,1773570640979,-350.81480094,0.00014765,2]
[408404001,1773570640988,-982.7910397,0.00014795,2]
[408404002,1773570640998,-974.77138768,0.00014795,2]
[408404003,1773570641007,-1106.60583664,0.00014795,2]
[408404004,1773570641017,-504.34667624,0.00014795,2]
[408404005,1773570641026,-1000.0,0.00014795,2]
[408404006,1773570641035,-1500.0,0.00014795,2]
[408404007,1773570641044,-504.89540778,0.00014795,2]
[408404008,1773570641056,-1000.0,0.00014795,2]
[408404009,1773570641066,-405.85897198,0.00014795,2]
[408404010,1773570641076,-200.0,0.0001484,2]
[408404011,1773570641085,-1795.71924551,0.00014912,2]
[408404012,1773570641094,-159.42,0.00014925,2]
[408404013,1773570641104,-250.0,0.00015,2]
[408404014,1773570641114,-244.75125332,0.00015313,2]
[408404015,1773570641123,-2000.0,0.00015342,2]
[408404016,1773570641133,-200.0,0.00015388,2]
[408404017,1773570641142,-13387.49862735,0.00015516,2]
[408404018,1773570641152,-736.0,0.00015537,2]
[408404019,1773570641161,-159.42,0.00015636,2]
[408404020,1773570641171,-288.72855791,0.00015659,2]
[408404021,1773570641184,-250.0,0.00015853,2]
[408404022,1773570641194,-823.0,0.00015872,2]
[408404023,1773570641203,-2000.0,0.0001589,2]
[408404024,1773570641212,-1000.0,0.0001589,2]
[408404025,1773570641224,-171.70924483,0.000159,2]
[408404026,1773570641233,-150.0,0.000159,2]
[408404027,1773570641243,-150.0,0.000159,2]
[408404028,1773570641253,-150.0,0.000159,2]
[408404029,1773570641263,-158.0,0.0001593,3]
[408404030,1773570641272,-200.0,0.00015936,2]
[408404031,1773570641281,-160.0,0.00015958,2]
[408404032,1773570641290,-5000.0,0.0001596,2]
[408404033,1773570641299,-3292.0,0.00015969,2]
[408404034,1773570641309,-6812.9368064,0.00016025,2]
[408404035,1773570641318,-469.87233333,0.00016056,2]
[408404036,1773570641327,-159.42,0.00016346,2]
[408404037,1773570641336,-13387.49862735,0.00016393,2]
[408404038,1773570641345,-150.0,0.000164,2]
[408404039,1773570641354,-213.0,0.000164,2]
[408404040,1773570641363,-302.46,0.000164,2]
[408404041,1773570641372,-353.5768258,0.000164,2]
[408404042,1773570641381,-150.0,0.00016438,2]
[408404043,1773570641391,-201.94987361,0.00016438,2]
[408404044,1773570641400,-200.0,0.00016484,2]
[408404045,1773570641409,-150.0,0.00016493,2]
[408404046,1773570641418,-150.0,0.00016548,2]
[408404047,1773570641427,-153.80287197,0.00016602,2]
[408404048,1773570641437,-166.66,0.00016712,2]
[408404049,1773570641447,-373.56103098,0.00016824,2]
[408404050,1773570641456,-7078.20260207,0.00016839,2]
[408404051,1773570641465,-1252.0,0.00016941,2]
[408404052,1773570641475,-300.0,0.00017,2]
[408404053,1773570641483,-518.0,0.00017,2]
[408404054,1773570641492,-236.3636339,0.00017032,2]
[408404055,1773570641501,-159.42,0.00017057,2]
[408404056,1773570641511,-500.0,0.00017205,2]
[408404057,1773570641520,-1466.4303,0.00017253,7]
[408404058,1773570641528,-13387.49862735,0.0001727,2]
[408404059,1773570641537,-879.98,0.00017271,2]
[408404060,1773570641546,-159.0,0.00017298,3]
[408404061,1773570641555,-308.15210792,0.00017341,2]
[408404062,1773570641563,-1152.0,0.00017425,2]
[408404063,1773570641573,-4609.0,0.00017566,2]
[408404064,1773570641582,-300.0,0.00017727,2]
[408404065,1773570641591,-9999.99,0.00017728,2]
[408404066,1773570641600,-4762.52,0.00017728,2]
[408404067,1773570641609,-1208.06,0.00017728,2]
[408404068,1773570641619,-29999.99,0.00017728,2]
[408404069,1773570641628,-159.42,0.00017768,2]
[408404070,1773570641637,-612.423864,0.00017791,7]
[408404071,1773570641646,-150.0,0.00017808,2]
[408404072,1773570641772,-784.55377187,0.00017808,2]
[408404073,1773570641781,-150.0,0.00017863,2]
[408404074,1773570641791,-1651.3710552,0.000179,2]
[408404075,1773570641799,-158.1686959,0.00017918,2]
[408404076,1773570641808,-195.11,0.00017974,2]
[408404077,1773570641818,-13387.49862735,0.00018146,2]
[408404078,1773570641827,-500.0,0.00018192,2]
[408404079,1773570641836,-158.0,0.00018209,3]
[408404080,1773570641845,-1390.0,0.00018465,2]
[408404081,1773570641854,-159.42,0.00018478,2]
[408404082,1773570641863,-500.1490798,0.00018533,2]
[408404083,1773570641872,-500.0,0.00018533,2]
[408404084,1773570641881,-500.0,0.000186,2]
[408404085,1773570641890,-500.0,0.000186,2]
[408404086,1773570641899,-500.0,0.000186,2]
[408404087,1773570641907,-500.0,0.000186,2]
[408404088,1773570641918,-500.0,0.000186,2]
[408404089,1773570641928,-500.0,0.000186,2]
[408404090,1773570641937,-500.0,0.000186,2]
[408404091,1773570641945,-700.0,0.000186,2]
[408404092,1773570641954,-500.0,0.000186,2]
[408404093,1773570641965,-500.0,0.000186,2]
[408404094,1773570641976,-500.0,0.000186,2]
[408404095,1773570641986,-500.0,0.000186,2]
[408404096,1773570641995,-864.64014527,0.000186,2]
[408404097,1773570642005,-500.0,0.000186,2]
[408404098,1773570642014,-500.0,0.000186,2]
[408404099,1773570642024,-500.0,0.000186,2]
[408404100,1773570642034,-500.0,0.000186,2]
[408404101,1773570642044,-153.56106977,0.00018911,2]
[408404102,1773570642053,-350.0,0.00019,2]
[408404103,1773570642063,-13387.49862735,0.00019023,2]
[408404104,1773570642072,-2503.69656434,0.00019152,2]
[408404105,1773570642082,-276.08,0.00019178,2]
[408404106,1773570642092,-150.0,0.00019178,2]
[408404107,1773570642101,-150.23101527,0.00019178,2]
[408404108,1773570642112,-159.42,0.00019189,2]
[408404109,1773570642121,-6453.0,0.00019322,2]
[408404110,1773570642130,-500.0,0.00019335,2]
[408404111,1773570642139,-166.66,0.00019658,2]
[408404112,1773570642148,-151.1911095,0.00019726,2]
[408404113,1773570642157,-1300.0,0.000198,7]
[408404114,1773570642167,-150.0,0.000198,2]
[408404115,1773570642179,-150.0,0.000198,14]
[408404116,1773570642188,-250.0,0.0001989,4]
[408404117,1773570642197,-150.0,0.000199,2]
[408404118,1773570642206,-150.0,0.000199,2]
[408404119,1773570642216,-150.0,0.000199,2]
[408404120,1773570642225,-200.0,0.000199,7]
[408404121,1773570642235,-13387.49862735,0.000199,2]
[408404122,1773570642244,-896.01113346,0.000199,2]
[408404123,1773570642253,-310.34047913,0.0001993,2]
[408404124,1773570642262,-300.0,0.0001993,2]
[408404125,1773570642271,-500.0,0.0001993,2]
[408404126,1773570642280,-500.0,0.0001993,2]
[408404127,1773570642290,-3244.5858343,0.00019931,2]
[408404128,1773570642299,-3162.5727522,0.00019931,2]
[408404129,1773570642307,-533793.2859325,0.00019931,2]
[408404130,1773570642316,-151.0,0.00019931,2]
[408404131,1773570642327,-5000.0,0.00019931,2]
[408404132,1773570642335,-3781.835403,0.00019931,2]
[408404133,1773570642344,-262.185,0.00019931,2]
[408404134,1773570642354,-262.185,0.00019931,2]
[408404135,1773570642363,-262.185,0.00019931,2]
[408404136,1773570642372,-2978.6443362,0.00019932,2]
[408404137,1773570642381,-277.18655867,0.0001999,2]
[408404138,1773570642391,-151.0,0.00019997,2]
[408404139,1773570642400,-151.0,0.00019997,2]
[408404140,1773570642409,-300.0,0.00019999,2]
[408404141,1773570642419,-666.0,0.00019999,2]
[408404142,1773570642429,-300.0,0.00019999,2]
[408404143,1773570642438,-500.0,0.00019999,2]
[408404144,1773570642447,-500.0,0.00019999,2]
[408404145,1773570642456,-500.0,0.00019999,2]
[408404146,1773570642466,-244.23410446,0.00019999,2]
[408404147,1773570642475,-172.819584,0.00019999,2]
[408404148,1773570642485,-1055488.43410922,0.0002,2]
[408404149,1773570642649,-262.185,0.00019931,2]
[408404150,1773570642659,-350366.24491492,0.0002,2]
[408404151,1773570642669,-172.6439,0.0002,2]
[408404152,1773570642678,-172.6439,0.0002,2]
[408404153,1773570642687,-172.6439,0.0002,2]
[408404154,1773570642697,-172.6439,0.0002,2]
[408404155,1773570642706,-172.6439,0.0002,2]
[408404156,1773570642716,-172.6439,0.0002,2]
[408404157,1773570642727,-45648.18585638,0.0002,2]
[408404158,1773570642737,-1099926.22241083,0.0002,2]
[408404159,1773570642746,-300.00000002,0.0002,2]
[408404160,1773570642756,-151.0,0.0002,2]
[408404161,1773570642765,-435.0,0.0002,2]
[408404162,1773570642774,-355.0,0.0002,2]
[408404163,1773570642785,-1318.31522047,0.0002,2]
[408404164,1773570642795,-200.0,0.0002,2]
[408404165,1773570642805,-207.01766239,0.0002,2]
[408404166,1773570642815,-151.0,0.0002,2]
[408404167,1773570642826,-156.646115,0.0002,2]
[408404168,1773570642836,-152.806641,0.0002,2]
[408404169,1773570642846,-153.320739,0.0002,2]
[408404170,1773570642858,-158.410399,0.0002,2]
[408404171,1773570642867,-151.0,0.0002,2]
[408404172,1773570642876,-151.0,0.0002,2]
[408404173,1773570642885,-179.366668,0.0002,2]
[408404174,1773570642894,-157.019101,0.0002,2]
[408404175,1773570642903,-189.712383,0.0002,2]
[408404176,1773570642913,-212.797635,0.0002,2]
[408404177,1773570642922,-153.875058,0.0002,2]
[408404178,1773570642931,-151.0,0.0002,2]